Cogmind - Beta 11 X11 @@@ ROGUE MODE // 2022.03.03 @ 16:45:29 Player: OccultOnion Result: Destroyed by S-27 Virus with Autogun Performance ------------- Evolutions (5) 2500 Regions Visited (6) 1200 Robots Destroyed (49) 245 Value Destroyed (1704) 1704 Prototype IDs (0) 0 Alien Tech Used (0) 0 Bonus (0) 0 TOTAL SCORE: 5649 Bonus ------- None Cogmind --------- Core Integrity 0/1000 Matter 221/300 Energy 100/100 System Corruption 24% Temperature Cool (0) Movement Core (50) Location -5/Factory Parts ------- > --- POWER (2) -------- (None) > --- PROPULSION (6) --- (None) > --- UTILITY (6) ------ (None) > --- WEAPON (3) ------- (None) > --- INVENTORY (5) ---- Fusion Compressor Fusion Compressor Improved Gravmag System Medium Storage Unit Advanced Targeting Computer Peak State ------------ > --- POWER ------------ Light Nuclear Core Improved Deuterium Engine > --- PROPULSION ------- Improved Carbon-fiber Leg Improved Carbon-fiber Leg Improved Carbon-fiber Leg Improved Carbon-fiber Leg Improved Carbon-fiber Leg Improved Titanium Leg > --- UTILITY ---------- Advanced Heat Sink Medium Storage Unit Enhanced Optical Array Advanced Sensor Array Signal Interpreter Advanced ECM Suite > --- WEAPON ----------- Field Laser KE Penetrator Scythe > --- INVENTORY -------- Improved Carbon-fiber Leg Improved Carbon-fiber Leg Improved Gravmag System Improved Gravmag System Improved Gravmag System Gravmag Array Medium Storage Unit Lightning Gun [Rating: 67] Favorites ----------- Power Ion Engine Engine Ion Engine Power Core Light Nuclear Core Propulsion Improved Titanium Leg Leg Improved Titanium Leg Wheel Wheel Hover Unit Improved Gravmag System Utility Medium Storage Unit Device Sensor Array Storage Medium Storage Unit Processor Signal Interpreter Hackware System Shield Protection Hardened Light Armor Plating Weapon Field Laser Energy Gun Field Laser Ballistic Gun High-powered Shotgun Impact Weapon Heavy Mace Slashing Weapon Scythe Build | -11 -10 -9 -8 -7 -6 -5 ------- Run | Scr Mat Mat Mat Fac Fac Fac Slots Evolved 10 | . . 2 2 2 2 2 Power 1 | . . . . 1 . . Propulsion 4 | . . 1 1 1 1 . Utility 4 | . . 1 1 . 1 1 Weapon 1 | . . . . . . 1 Parts Attached 72 | 1 2 11 12 8 12 26 Power 9 | . . 1 . 2 1 5 Engine 5 | . . 1 . 2 1 1 Core 4 | . . . . . . 4 Reactor . | . . . . . . . Propulsion 32 | . . 4 8 2 6 12 Treads . | . . . . . . . Leg 26 | . . 3 8 2 6 7 Wheel 1 | . . 1 . . . . Hover 5 | . . . . . . 5 Flight . | . . . . . . . Utility 15 | 1 2 5 2 1 2 2 Device 6 | . 1 1 1 1 1 1 Storage 2 | 1 1 . . . . . Processor 2 | . . . 1 . 1 . Hackware 1 | . . . . . . 1 Protection 4 | . . 4 . . . . Artifact . | . . . . . . . Weapon 16 | . . 1 2 3 3 7 Energy Gun 4 | . . . 1 . 1 2 Energy Cannon . | . . . . . . . Ballistic Gun 7 | . . 1 1 1 1 3 Ballistic Cannon . | . . . . . . . Launcher . | . . . . . . . Special Weapon . | . . . . . . . Impact Weapon 2 | . . . . . . 2 Slashing Weapon 3 | . . . . 2 1 . Piercing Weapon . | . . . . . . . Special Melee Weapon . | . . . . . . . Unidentified Prototypes . | . . . . . . . Parts Lost 49 | . . 7 6 3 . 33 Power 9 | . . 1 . 1 . 7 Propulsion 19 | . . 3 4 1 . 11 Utility 10 | . . 2 . 1 . 7 Weapon 11 | . . 1 2 . . 8 Highest Loss Streak 11 | . . 3 2 2 . 11 To Critical Strikes . | . . . . . . . Average Slot Usage (%) 91 | . 94 92 97 99 97 70 Engine 10 | . 14 10 9 14 13 3 Leg 31 | . 28 22 34 37 39 23 Device 9 | . 3 7 9 12 13 7 Storage 8 | . 19 11 9 7 6 4 Processor 6 | . . . 8 7 11 8 Protection 3 | . . 13 9 1 . . Energy Gun 6 | . 14 11 8 4 . 4 Ballistic Gun 6 | . 14 8 8 6 5 3 Slashing Weapon 2 | . . . . 3 5 3 Naked Turns 52 | . . . . . . 52 Heaviest Build 37 | 17 22 24 25 34 32 37 Greatest Support 116 | 20 20 30 80 95 110 116 Greatest Overweight (x) 4 | . 1 2 . . . 4 Average Overweight (x) . | . . 1 . . . . Largest Inventory Capacity 10 | 8 10 10 10 10 10 10 Average Capacity 9 | 8 9 10 10 10 10 9 Most Carried 10 | 7 10 10 10 10 10 10 Average Carried 8 | 6 8 9 9 9 9 7 Final Capacity 10 | 8 10 10 10 10 10 5 Final Carried 10 | 7 10 10 10 10 10 5 Class Distribution -------------------- 44% | Mutant 36% | Scavenger-Mutant 14% | Scavenger-Assassin 4% | Assassin Dominant Class ---------------- Mutant | -10/Materials Mutant | -9/Materials Scavenger-Mutant | -8/Materials Scavenger-Mutant | -7/Factory Scavenger-Assassin | -6/Factory Mutant | -5/Factory Resources | -11 -10 -9 -8 -7 -6 -5 ----------- Run | Scr Mat Mat Mat Fac Fac Fac Matter Collected 1116 | 205 50 96 243 58 161 303 Remotely . | . . . . . . . Salvage Created 2228 | 70 68 328 583 229 161 789 Parts 117 | 2 10 23 34 16 7 25 Haulers Intercepted . | . . . . . . . Recyclers Shooed 2 | . . . 1 . . 1 Parts Field Recycled . | . . . . . . . Retrieved Matter . | . . . . . . . Parts Self-Destructed . | . . . . . . . Prevented . | . . . . . . . Kills | -11 -10 -9 -8 -7 -6 -5 ------- Run | Scr Mat Mat Mat Fac Fac Fac Combat Hostiles Destroyed 40 | . 6 7 11 5 1 10 Melee 1 | . . . . 1 . . Guns 37 | . 6 7 11 4 1 8 AOE 1 | . . . . . . 1 Classes Destroyed 12 | 1 1 3 2 2 . 3 Worker 1 | . . . . . . 1 Builder 2 | . . . . 1 . 1 Tunneler 1 | . . . 1 . . . Recycler 4 | 1 . . 1 . 1 1 Watcher 1 | . . 1 . . . . Swarmer 9 | . 6 . 3 . . . Grunt 15 | . . 5 4 2 . 4 Brawler 1 | . . . . . . 1 Duelist 1 | . . . . . . 1 Sentry 10 | . . 2 3 1 . 4 Hunter 1 | . . . 1 . . . Programmer 3 | . . . . 2 1 . Best Kill Streak 3 | 1 3 2 3 2 1 2 Combat Bots Only 3 | . 3 2 3 2 1 2 Max Kills in Single Turn 1 | 1 1 1 1 1 1 1 Gunslinging . | . . . . . . . Exploded 1 | . . . . . . 1 Melee 1 | . . . . 1 . . Uniques/NPCs Destroyed . | . . . . . . . Combat | -11 -10 -9 -8 -7 -6 -5 -------- Run | Scr Mat Mat Mat Fac Fac Fac Damage Taken 6513 | . 310 879 738 575 180 3831 Core 1447 | . 47 135 161 77 15 1012 Absorbed by Shields . | . . . . . . . Core Remaining (%) 84 | 100 81 66 70 89 98 . Volleys Fired 208 | 5 31 36 49 27 4 56 Largest 2 | 2 2 2 2 2 2 2 Hottest 118 | 60 60 60 88 88 88 118 Shots Fired 370 | 10 60 56 91 46 8 99 Gun 370 | 10 60 56 91 46 8 99 Cannon . | . . . . . . . Launcher . | . . . . . . . Special . | . . . . . . . Kinetic 178 | 5 31 21 44 28 4 45 Thermal 186 | 5 29 35 47 18 4 48 Explosive . | . . . . . . . Electromagnetic 6 | . . . . . . 6 Robot Hit Streak 31 | 4 10 13 11 11 2 31 Robot Miss Streak 6 | 1 5 2 4 6 2 5 Penetration Max 1 | . . . . . . 1 Secondary Targets 4 | . . 1 2 . . 1 Max Gunslinging Chain 1 | . . 1 1 . . 1 Shots Hit Robots 271 | 8 31 43 64 35 5 85 Core Hits 107 | 2 10 17 28 15 3 32 Critical Kills 1 | . . . . . . 1 Critical Parts Destroyed . | . . . . . . . Critical Strikes 2 | . . . . . . 2 Burn 1 | . . . . . . 1 Destroy 1 | . . . . . . 1 Melee Attacks 44 | . . . . 15 10 19 Impact 11 | . . . . . . 11 Slashing 33 | . . . . 15 10 8 Piercing . | . . . . . . . Sneak Attacks 6 | . . . . 1 2 3 Combat Hostiles . | . . . . . . . Follow-up Attacks . | . . . . . . . Damage Inflicted 4869 | 71 291 417 931 771 275 2113 Guns 3960 | 71 291 417 931 618 83 1549 Cannons . | . . . . . . . Explosions . | . . . . . . . Melee 853 | . . . . 153 192 508 Ramming 56 | . . . . . . 56 Kinetic 2052 | 25 123 121 430 391 61 901 Thermal 1826 | 46 168 296 501 227 22 566 Explosive . | . . . . . . . Electromagnetic 82 | . . . . . . 82 Impact 290 | . . . . . . 290 Slashing 563 | . . . . 153 192 218 Piercing . | . . . . . . . Highest Corruption 24 | . . . . 6 4 24 Average Corruption 6 | . . . . 5 2 15 Corruption Purged . | . . . . . . . Corruption Blocked . | . . . . . . . Effects 31 | . . . . 13 9 9 Message Errors 8 | . . . . 2 3 3 Matter Fused 3 | . . . . 1 2 . Heat Flow Errors 6 | . . . . 3 . 3 Energy Discharges 1 | . . . . . . 1 Data Loss (minor) 8 | . . . . 4 4 . Data Loss (major) 2 | . . . . 1 . 1 Misfires 2 | . . . . 2 . . Misdirections 1 | . . . . . . 1 Overload Shots . | . . . . . . . Overflow Damage 252 | . . . . . 26 226 Projectiles . | . . . . . . . Explosions . | . . . . . . . Melee 252 | . . . . . 26 226 Knockbacks 3 | . . . . . . 3 Impact 3 | . . . . . . 3 Kinetic . | . . . . . . . Secondary . | . . . . . . . Self-Inflicted Damage 26 | . . . . . . 26 Shots . | . . . . . . . Rammed 12 | . . . . . . 12 Targets Rammed 12 | . . . . . . 12 Kicked . | . . . . . . . Crushed . | . . . . . . . Highest Temperature 337 | 20 80 261 216 337 36 269 Average Temperature 85 | 13 36 107 73 138 19 84 Received Heat Transfer 1320 | . . 342 306 81 . 591 Effects 4 | . . . . 3 . 1 Interference 4 | . . . . 3 . 1 Siege Activations . | . . . . . . . Robots Corrupted . | . . . . . . . Combat Hostiles . | . . . . . . . Parts Fried 1 | . . . . . . 1 Impact Corruptions 4 | . . . . . . 4 Robots Melted 1 | . . . . . . 1 Combat Hostiles 1 | . . . . . . 1 Parts Melted 6 | . . 1 . 1 . 4 Heat Transferred 4061 | 100 375 675 1098 444 37 1332 Parts Sabotaged 2 | . . . . . . 2 Parts Stolen . | . . . . . . . Parts Stripped . | . . . . . . . Power Chain Reactions . | . . . . . . . Missiles Intercepted . | . . . . . . . Alert | -11 -10 -9 -8 -7 -6 -5 ------- Run | Scr Mat Mat Mat Fac Fac Fac Peak Influence 340 | 5 143 196 340 143 40 123 Initial 102 | . 3 59 82 102 4 2 Average 71 | 2 62 104 178 61 5 36 Maximum Alert Level 1 | . . . 1 . . . Low Security (%) 94 | 100 100 100 62 100 100 100 Level 1 5 | . . . 37 . . . Level 2 . | . . . . . . . Level 3 . | . . . . . . . Level 4 . | . . . . . . . Level 5 . | . . . . . . . High Security . | . . . . . . . Max Security . | . . . . . . . Squads Dispatched 12 | . . 4 1 2 1 4 Investigation 1 | . . 1 . . . . Extermination 3 | . . . . 2 1 . Reinforcement 5 | . . 3 1 . . 1 Assault . | . . . . . . . Garrison 3 | . . . . . . 3 Intercept . | . . . . . . . Searches Triggered . | . . . . . . . Construction Impeded 1 | . . . 1 . . . Haulers Reinforced 1 | . . . . . . 1 Active Scanning Responses . | . . . . . . . Cargo Convoy Interrupts 1 | . . . . . . 1 Stealth | -11 -10 -9 -8 -7 -6 -5 --------- Run | Scr Mat Mat Mat Fac Fac Fac Distress Signals 5 | . 1 1 3 . . . Communications Jammed . | . . . . . . . Distress Signals . | . . . . . . . Times Spotted 102 | . 9 16 21 8 1 47 Peak Tracking Total 16 | . 4 5 6 2 1 16 Tactical Retreats 7 | . . 1 2 . . 4 Traps | -11 -10 -9 -8 -7 -6 -5 ------- Run | Scr Mat Mat Mat Fac Fac Fac Traps Triggered 7 | . 1 . . . 6 . Indirectly . | . . . . . . . Trap Hack Attempts . | . . . . . . . Triggered . | . . . . . . . Disarmed . | . . . . . . . Reprogrammed . | . . . . . . . Reused . | . . . . . . . Traps Extracted . | . . . . . . . Installed . | . . . . . . . Triggered . | . . . . . . . Machines | -11 -10 -9 -8 -7 -6 -5 ---------- Run | Scr Mat Mat Mat Fac Fac Fac Machines Disabled . | . . . . . . . Max in Single Turn . | . . . . . . . Machines Sabotaged . | . . . . . . . Garrisons Compromised . | . . . . . . . Overloaded Fab Kills . | . . . . . . . Hacking | -11 -10 -9 -8 -7 -6 -5 --------- Run | Scr Mat Mat Mat Fac Fac Fac Machines Accessed 16 | . 3 2 3 6 1 1 Terminals 16 | . 3 2 3 6 1 1 Fabricators . | . . . . . . . Repair Stations . | . . . . . . . Recycling Units . | . . . . . . . Scanalyzers . | . . . . . . . Garrison Access . | . . . . . . . Total Hacks 36 | . 5 5 8 13 1 4 Successful 14 | . 2 1 4 4 . 3 Failed 22 | . 3 4 4 9 1 1 Catastrophic 3 | . 1 1 . 1 . . Database Lockouts . | . . . . . . . Manual 27 | . 4 5 5 9 1 3 Terminals 36 | . 5 5 8 13 1 4 Fabricators . | . . . . . . . Repair Stations . | . . . . . . . Recycling Units . | . . . . . . . Scanalyzers . | . . . . . . . Garrison Access . | . . . . . . . Terminal Hacks 10 | . 2 1 2 3 . 2 Level Access Points 2 | . . . 1 1 . . Terminal Index 4 | . 1 1 . 1 . 1 Unreport Threat 1 | . . . . 1 . . Zone Layout 3 | . 1 . 1 . . 1 Fabricator Hacks . | . . . . . . . Repair Station Hacks . | . . . . . . . Recycling Unit Hacks . | . . . . . . . Scanalyzer . | . . . . . . . Garrison Access Hacks . | . . . . . . . Unauthorized Hacks 4 | . . . 2 1 . 1 Terminals 4 | . . . 2 1 . 1 Track 1 | . . . . . . 1 Assimilate 1 | . . . 1 . . . Botnet 2 | . . . 1 1 . . Fabricators . | . . . . . . . Repair Stations . | . . . . . . . Recycling Units . | . . . . . . . Scanalyzers . | . . . . . . . Garrison Access . | . . . . . . . Data Cores Recovered . | . . . . . . . Used . | . . . . . . . Hacking Detections 15 | . 2 2 3 6 1 1 Full Trace Events 1 | . . 1 . . . . Feedback Events . | . . . . . . . Feedback Blocked . | . . . . . . . Robot Schematics Acquired . | . . . . . . . Robots Built . | . . . . . . . Authchips . | . . . . . . . Time . | . . . . . . . Total Robot Build Rating . | . . . . . . . Part Schematics Acquired . | . . . . . . . Parts Built . | . . . . . . . Authchips . | . . . . . . . Time . | . . . . . . . Total Part Build Rating . | . . . . . . . Parts Repaired . | . . . . . . . Time . | . . . . . . . Parts Recycled . | . . . . . . . Recycled Matter . | . . . . . . . Retrieved Matter . | . . . . . . . Retrieved Components . | . . . . . . . Parts Scanalyzed . | . . . . . . . Part Schematics Acquired . | . . . . . . . Parts Damaged . | . . . . . . . Bothacking | -11 -10 -9 -8 -7 -6 -5 ------------ Run | Scr Mat Mat Mat Fac Fac Fac Used RIF Installer . | . . . . . . . Robots Hacked . | . . . . . . . Non-combat . | . . . . . . . Combat . | . . . . . . . Robot Hacks Applied . | . . . . . . . Relay Couplers Released . | . . . . . . . Fabnet Peak Effective % . | . . . . . . . Robots Rewired . | . . . . . . . Allies Hacked . | . . . . . . . Hacks Repelled . | . . . . . . . Allies | -11 -10 -9 -8 -7 -6 -5 -------- Run | Scr Mat Mat Mat Fac Fac Fac Total Allies 1 | . . . 1 . . . Largest Group 1 | . . . 1 . . . Highest-Rated Group 10 | . . . 10 . . . Highest-Rated Ally 10 | . . . 10 . . . Total Orders . | . . . . . . . Ally Attacks . | . . . . . . . Total Damage . | . . . . . . . Kills . | . . . . . . . Allies Corrupted . | . . . . . . . Allies Melted . | . . . . . . . Intel | -11 -10 -9 -8 -7 -6 -5 ------- Run | Scr Mat Mat Mat Fac Fac Fac Robot Analysis Total . | . . . . . . . Derelict Logs Recovered . | . . . . . . . Drone Launches . | . . . . . . . Drone Recoveries . | . . . . . . . Exploration | -11 -10 -9 -8 -7 -6 -5 ------------- Run | Scr Mat Mat Mat Fac Fac Fac Turns Passed 3428 | 25 353 373 540 923 494 720 Spaces Moved 2091 | 8 212 217 271 599 343 441 Core 101 | . . . . . . 101 Treads . | . . . . . . . Legs 1790 | 8 212 67 271 599 343 290 Wheels 150 | . . 150 . . . . Hover 50 | . . . . . . 50 Flight . | . . . . . . . Fastest Speed 48 | 120 120 95 120 128 126 48 Average Speed 118 | 120 120 113 123 128 126 99 Slowest Speed 260 | 120 190 260 130 130 128 250 Overloaded Moves . | . . . . . . . Propulsion Burnouts . | . . . . . . . Robots Hopped . | . . . . . . . Cave-ins Triggered . | . . . . . . . Exploration Rate (%) 21 | 3 31 36 28 20 13 16 Regions Visited 6 Branch Regions . Pre-discovered Areas . | . . . . . . . Known Exits Taken 3 | . . . 1 1 1 . Unknown Exits Taken 3 | 1 1 1 . . . . Scrap Searched . | . . . . . . . Spaces Dug 29 | . . . . 12 8 9 Terrain Destroyed 31 | . . . . 12 8 11 Melee 29 | . . . . 12 8 9 Projectile 2 | . . . . . . 2 AOE . | . . . . . . . Terrain Rammed . | . . . . . . . Walls Destroyed . | . . . . . . . Machines Disabled . | . . . . . . . Actions | -11 -10 -9 -8 -7 -6 -5 --------- Run | Scr Mat Mat Mat Fac Fac Fac Total 2614 | 14 257 293 388 689 378 595 Wait 122 | . 4 18 40 34 1 25 Move 2085 | 7 211 216 270 598 342 441 Hop . | . . . . . . . Pick Up 44 | 1 5 9 9 6 4 10 Fast Attach 24 | 1 1 3 4 . 9 6 Attach 33 | . 1 6 5 5 1 15 Detach 2 | . 1 . . . . 1 Swap 15 | . . 2 3 3 2 5 Drop 25 | . 3 3 8 1 5 5 Fire 208 | 5 31 36 49 27 4 56 Melee 44 | . . . . 15 10 19 Ram 12 | . . . . . . 12 Kick . | . . . . . . . Crush . | . . . . . . . Escape Stasis . | . . . . . . . Rewire . | . . . . . . . Trap . | . . . . . . . Miscellaneous . | . . . . . . . Route ------- -11/Scrapyard -10/Materials (discovered 2 exits: *Mat x2) -9/Materials (discovered 2 exits: *Mat / [*Min]) -8/Materials (discovered 3 exits: *Fac x3) -7/Factory (discovered 5 exits: *Fac x4 / *Low) -6/Factory -5/Factory History --------- Turn | Location | Event 15 | -11/Scrapyard | Discovered new exit (range 3) 26 | -11/Scrapyard | Entered Materials 307 | -10/Materials | Discovered new exit (range 11) 317 | -10/Materials | Build established: Mutant 353 | -10/Materials | Discovered new exit (range 16) 379 | -10/Materials | Entered another Materials area 379 | -9/Materials | Evolved 2 slots: Propulsion x1, Utility x1 492 | -9/Materials | Discovered new exit (range 15) 661 | -9/Materials | Lost 3 parts (1n1u1w) 734 | -9/Materials | Discovered new exit (range 16) 752 | -9/Materials | Entered another Materials area 752 | -8/Materials | Evolved 2 slots: Propulsion x1, Utility x1 910 | -8/Materials | Identified exit to Factory 949 | -8/Materials | Build established: Scavenger-Mutant 1292 | -8/Materials | Entered Factory 1292 | -7/Factory | Evolved 2 slots: Power x1, Propulsion x1 1371 | -7/Factory | Build established: Mutant 1811 | -7/Factory | Discovered new exit (range 10) 1821 | -7/Factory | Identified exit to Lower Caves 1905 | -7/Factory | Identified exit to Factory 1967 | -7/Factory | Build established: Scavenger-Mutant 2215 | -7/Factory | Entered another Factory area 2215 | -6/Factory | Evolved 2 slots: Propulsion x1, Utility x1 2669 | -6/Factory | Discovered new exit (range 9) 2706 | -6/Factory | Identified exit to Factory 2709 | -6/Factory | Entered another Factory area 2709 | -5/Factory | Evolved 2 slots: Utility x1, Weapon x1 3022 | -5/Factory | Garrison activated, responded to threat 3119 | -5/Factory | Lost 9 parts (3p3n3u) 3201 | -5/Factory | System corruption reached 10% 3281 | -5/Factory | Core integrity fell below 50% 3301 | -5/Factory | Lost 11 parts (1p5n1u4w) 3348 | -5/Factory | Build established: Mutant 3353 | -5/Factory | Cargo convoy interrupted 3360 | -5/Factory | Spotted B-75 Beast 3375 | -5/Factory | Core integrity fell below 20% 3407 | -5/Factory | Lost 11 parts (2p3n3u3w) 3429 | -5/Factory | Destroyed by S-27 Virus with Autogun Last Messages --------------- 03364_ Slug penetrates P-70 Sage. 03364_ Slammed into P-70 Sage. 03364_ Destabilizing: System corrupted (+2). 03364_ Med. Storage Unit destroyed. 03365_ P-70 Sage resets P-70 Sage, system corruption cleaned. 03365_ Slammed into X-67 Chaingunner. 03365_ Fusion Compressor destroyed. 03366_ K-01 Serf collects debris. 03367_ Gravmag Array destroyed. 03367_ Penetrated by Slug. 03376_ Slammed into A-15 Conveyor. 03376_ System Shield destroyed. 03376_ System corrupted by crushing effect (+3). 03376_ A-15 Conveyor calls for reinforcements. 03376_ ALERT: Hostile activity reported, dispatching reinforcements to area. 03390_ Slammed into U-05 Engineer. 03396_ Z L|OAX%UHN9>1JYG#FC3PAZYNCLX6K2VQ= 03416_ Slammed into S-27 Virus. 03427_ Acquired Adv. Targeting Computer. 03429_ Slammed into P-70 Sage. Map ----- +----------------------------------------------------+ | ?????????????????????????????????????????????????? | | ?????????????????????????????????????????????????? | | ?????????????????????????????????????????????????? | | ?????????????????????????????????????????????????? | | ?????????????????????????????????????????????????? | | ?????????????????????????????????????????????????? | | ?????????????????????????????????????????????????? | | ?????????????????????????????????????????????????? | | ?????????????????????????????????????????????????? | | ?????????????????????????????????????????????????? | | ?????????????????????????????????????????????????? | | ?????????????????????????????????????????????????? | | ?????????????????????????????????????????????????? | | ?????????????????????????????????????????????????? | | ?????????????????????????????????????????????????? | | ?????????????????????????????????????????????????? | | ???????????????????#######???????????????????????? | | ???????????????????# #???????????????????????? | | ???????????????????#"" #???????????????????????? | | ???????????????????#"" #???????????????????????? | | ???????????????????#"Y #???????????????????????? | | ???????????????????#"" #???????????????????????? | | ???????????????????#"" #???????????????????????? | | ???????????????????# #???????????????????????? | | ???????????????????#ps ##+##+## ????????? | | ???????????????????# """ @s ????????? | | ???????????????????# """p## ????????? | | ???????????????????#p""" ## ""? ??????? | | ???????????????????# ## ##### """ "?????? | | ?????????????#######+###### #??????? """ "???##? | | ?????? #??????? """ ""?? ? | | ?????????????##############+#####?? F?? #? | | ????????????????????????# #? ""?? #? | | ????????????????????????#= # "??? #? | | ????????????????????????# """ # "Y" #### #? | | ????????????????????????# """ + """ +? | | ????????????????????????# """ # ] #? | | ????????????????????????# # ## | | ????????????????????????# """ #?####### # | | ????????????????????????# """ #???????# # | | ????????????????????????# """ #???????# # | | ????????????????????????# ######### # | | ????????????????????????# """ + / | | ????????????????????????# """ ######### ##### | | ????????????????????????# """ #???????##+##???# | | ????????????????????????# #???????????????# | | ????????????????????????# #???????????????# | | ????????????????????????# #???????????????# | | ????????????????????????#########???????????????# | | ????????????????????????????????????????????????# | +----------------------------------------------------+ Best States ------------- Heat Dissipation 59 Energy Generation 25 Energy Capacity 415 Matter Stores 300 Matter Capacity 300 Sight Range 22 Robot Scan Range 16 Terrain Scan Range 14 Terrain Scan Density 10 ECM Strength 2 Armor Coverage 300 Evasion (%) 55 Defensive Hacking 10 Item Schematics ----------------- None Robot Schematics ------------------ None Fabricated ------------ Nothing Alien Tech Used ----------------- None Achievements -------------- None Challenges ------------ None Game ------ Seed ImpactHeartBlade Manual? 0 Play Time 00:32:45 Cumulative 112.2 hours Start 2022.03.03 @ 16:12:47 End 2022.03.03 @ 16:45:29 Sessions 1 Manual Loads 0 Difficulty Rogue Special Mode None Game No. 225 Rogue 225 Adventurer 0 Explorer 0 Win Type - Total 0 Types 0/0/0/0/0/0/0/0/0 Lore% 33 Gallery% 55 Achievement% 35 Wizard Run 0 Options --------- ASCII 0 Keyboard 1 Movement Vi Keybinds 0 Fullscreen 1 Font 20/SmallcapsGlow Map View 82x60 Tactical HUD 1 Map Filters NONE Filters NONE Steam 1 RUN: 9ee01439-5ef8-4115-8c0e-ac99100cc021